fUSD/lending_fUSD_20241227
["ID","MTS","AMOUNT","RATE_DAILY","PERIOD"]
[346841607,1735318250567,-1499.43,0.00010659,2]
[346841608,1735318250576,-1869.82,0.00010659,2]
[346841609,1735318250590,-590.44,0.00010659,2]
[346841610,1735318250600,-2028.9,0.00010659,2]
[346841611,1735318250609,-702.44,0.00010659,2]
[346841612,1735318250619,-1481.48,0.00010659,2]
[346841613,1735318250628,-970.23,0.00010659,2]
[346841614,1735318250639,-500.0,0.00010659,2]
[346841615,1735318250649,-1788.15,0.00010659,2]
[346841616,1735318250659,-542.75,0.00010659,2]
[346841617,1735318250669,-876.87,0.00010659,2]
[346841618,1735318250678,-941.61119674,0.00010659,2]
[346841619,1735318250688,-490.29,0.0001071,2]
[346841620,1735318250697,-211.64296681,0.00010744,2]
[346841621,1735318250707,-941.61119674,0.00010745,2]
[346841622,1735318250717,-500.0,0.00010758,2]
[346841623,1735318250727,-719.38,0.00010758,2]
[346841624,1735318250736,-500.0,0.00010758,2]
[346841625,1735318250747,-500.0,0.00010758,2]
[346841626,1735318250757,-640.22,0.00010758,2]
[346841627,1735318250766,-634.21,0.00010758,2]
[346841628,1735318250776,-500.0,0.00010758,2]
[346841629,1735318250785,-500.0,0.00010758,2]
[346841630,1735318250795,-567.55,0.00010758,2]
[346841631,1735318250804,-564.47,0.00010758,2]
[346841632,1735318250814,-1001.47,0.00010758,2]
[346841633,1735318250825,-500.0,0.00010758,2]
[346841634,1735318250836,-500.0,0.00010758,2]
[346841635,1735318250846,-823.5,0.00010758,2]
[346841636,1735318250856,-1247.78,0.00010758,2]
[346841637,1735318250866,-500.0,0.00010758,2]
[346841638,1735318250875,-1041.9,0.00010758,2]
[346841639,1735318250885,-500.0,0.00010758,2]
[346841640,1735318250895,-4800.33,0.00010759,2]
[346841641,1735318250905,-2332.49,0.00010759,2]
[346841642,1735318250915,-8475.17,0.00010759,2]
[346841643,1735318250924,-2320.78,0.00010759,2]
[346841644,1735318250933,-4834.52,0.00010759,2]
[346841645,1735318250943,-2195.61,0.00010759,2]
[346841646,1735318250952,-2324.57,0.00010759,2]
[346841647,1735318250961,-2324.57,0.00010759,2]
[346841648,1735318250971,-624.69,0.00010759,2]
[346841649,1735318250980,-4244.82,0.00010759,2]
[346841650,1735318250989,-6141.53,0.00010759,2]
[346841651,1735318250998,-2315.79,0.00010759,2]
[346841652,1735318251007,-4816.25,0.00010759,2]
[346841653,1735318251017,-770.77,0.00010759,2]
[346841654,1735318251026,-2060.05,0.00010759,2]
[346841655,1735318251035,-2262.04,0.00010759,2]
[346841656,1735318251044,-2118.88,0.00010759,2]
[346841657,1735318251054,-1723.96,0.00010759,2]
[346841658,1735318251063,-2577.57,0.00010759,2]
[346841659,1735318251072,-3052.99,0.00010759,2]
[346841660,1735318251083,-5763.21,0.00010759,2]
[346841661,1735318251093,-7078.37,0.00010759,2]
[346841662,1735318251102,-24959.55,0.00010759,2]
[346841663,1735318251112,-4604.19,0.00010759,2]
[346841664,1735318251121,-2275.8,0.00010759,2]
[346841665,1735318251131,-1762.18,0.00010759,2]
[346841666,1735318251141,-24013.4,0.00010759,2]
[346841667,1735318251151,-872.71,0.00010759,2]
[346841668,1735318251161,-3478.45,0.00010759,2]
[346841669,1735318251170,-3485.82,0.00010759,2]
[346841670,1735318251179,-4156.83,0.0001076,2]
[346841671,1735318251192,-2483.92,0.0001076,2]
[346841672,1735318251202,-1781.06,0.0001076,2]
[346841673,1735318251211,-5443.7,0.0001076,2]
[346841674,1735318251220,-752.9,0.0001076,2]
[346841675,1735318251230,-1442.87,0.0001076,2]
[346841676,1735318251239,-1728.47,0.0001076,2]
[346841677,1735318251250,-1363.45,0.0001076,2]
[346841678,1735318251259,-4403.07,0.0001076,2]
[346841679,1735318251269,-1000.0,0.00010767,2]
[346841680,1735318251279,-173.85072755,0.00010831,2]
[346841681,1735318251289,-941.61119674,0.00010831,2]
[346841682,1735318251299,-27249.4915,0.00010833,2]
[346841683,1735318251309,-2100.0,0.00010876,2]
[346841684,1735318251318,-3000.0,0.0001092,2]
[346841685,1735318251328,-551.3,0.00010928,2]
[346841686,1735318251339,-2699.11,0.00010928,2]
[346841687,1735318251348,-688.08,0.00010928,2]
[346841688,1735318251357,-8606.03,0.00010928,2]
[346841689,1735318251367,-2317.34,0.00010928,2]
[346841690,1735318251377,-886.43,0.00010928,2]
[346841691,1735318251386,-2039.83,0.00010928,2]
[346841692,1735318251396,-391.43,0.00010928,2]
[346841693,1735318251406,-1035.36,0.00010928,2]
[346841694,1735318251416,-3091.24,0.00010928,2]
[346841695,1735318251425,-1074.36,0.00010928,2]
[346841696,1735318251435,-500.0,0.00010928,2]
[346841697,1735318251445,-42.90437449,0.00010928,2]
[346841701,1735318992259,650.78,8.219e-05,2]
[346841702,1735319121920,161.11,7.646e-05,2]
[346841706,1735319391745,-947.72946,9.438e-05,2]
[346841707,1735319391767,-5293.1352,9.486e-05,2]
[346841708,1735319391791,-218.24,9.531e-05,2]
[346841709,1735319391812,-1000.0,9.54e-05,2]
[346841710,1735319391832,-250.0,9.558e-05,2]
[346841711,1735319391854,-250.0,9.566e-05,2]
[346841712,1735319391875,-300.0,9.583e-05,2]
[346841713,1735319391895,-303.42,9.585e-05,3]
[346841714,1735319411569,-10000.0,9.686e-05,2]
[346841715,1735319418957,-10000.0,9.686e-05,2]
[346841729,1735319431923,-3900.0,9.686e-05,2]
[346841733,1735319432020,-570.03,9.752e-05,2]
[346841734,1735319432032,-165.6,9.955e-05,2]
[346841735,1735319432043,-161.44,0.00010137,2]
[346841736,1735319432055,-650.78,0.00010449,2]
[346841737,1735319432066,-38738.81480452,0.00010449,2]
[346841738,1735319432080,-11261.18519548,0.00010449,2]
[346841739,1735319432091,-385.6819,0.00010455,2]
[346841740,1735319432104,-3862.3307,0.00010455,2]
[346841741,1735319432115,-2033.7834,0.00010455,2]
[346841742,1735319432127,-4260.4598,0.00010455,2]
[346841743,1735319432138,-1000.0,0.00010455,2]
[346841744,1735319432149,-848.8834,0.00010457,2]
[346841745,1735319432160,-251.1,0.00010459,2]
[346841746,1735319432171,-500.0,0.00010459,2]
[346841747,1735319432183,-1000.0,0.00010459,2]
[346841748,1735319432194,-529.989,0.0001048,2]
[346841749,1735319432205,-900.0,0.000105,3]
[346841750,1735319432216,-5000.0,0.00010554,2]
[346841751,1735319432228,-500.0,0.00010554,2]
[346841752,1735319432239,-1039.27,0.00010554,2]
[346841753,1735319432250,-500.0,0.00010554,2]
[346841754,1735319432261,-1005.66,0.00010554,2]
[346841755,1735319432273,-500.0,0.00010554,2]
[346841756,1735319432283,-819.88,0.00010555,2]
[346841757,1735319432295,-2718.34507208,0.00010555,2]
[346841758,1735319432341,-564.81492792,0.00010555,2]
[346841759,1735319432352,-1472.13,0.00010555,2]
[346841760,1735319432363,-2205.89,0.00010555,2]
[346841761,1735319432374,-25153.27,0.00010555,2]
[346841762,1735319432385,-718.0,0.00010555,2]
[346841763,1735319432396,-923.64,0.00010555,2]
[346841764,1735319432407,-504.97172623,0.00010555,2]
[346841765,1735319432419,-505.35,0.00010555,2]
[346841766,1735319432430,-1472.48,0.00010555,2]
[346841767,1735319432441,-2495.02,0.00010555,2]
[346841768,1735319432452,-868.48,0.00010555,2]
[346841770,1735319432463,-630.74,0.00010555,2]
[346841772,1735319432473,-8516.47,0.00010555,2]
[346841774,1735319432484,-2145.06,0.00010555,2]
[346841776,1735319432495,-5191.2,0.00010555,2]
[346841779,1735319432507,-1275.05,0.00010555,2]
[346841781,1735319432517,-1890.68,0.00010555,2]
[346841783,1735319432529,-1441.13,0.00010555,2]
[346841785,1735319432541,-3207.89,0.00010555,2]
[346841787,1735319432554,-511.37,0.00010555,2]
[346841789,1735319432565,-500.0,0.00010555,2]
[346841792,1735319432575,-500.0,0.00010555,2]
[346841794,1735319432587,-1111.22,0.00010555,2]
[346841796,1735319432598,-1640.0,0.00010555,2]
[346841798,1735319432611,-635.98,0.00010555,2]
[346841800,1735319432622,-2234.79,0.00010555,2]
[346841802,1735319432633,-97353.9481,0.00010555,2]
[346841804,1735319432644,-55555.0,0.00010555,2]
[346841806,1735319432656,-500.0,0.00010556,2]
[346841808,1735319432666,-500.0,0.00010556,2]
[346841810,1735319432676,-500.0,0.00010556,2]
[346841812,1735319432687,-500.0,0.00010556,2]
[346841815,1735319432698,-500.0,0.00010556,2]
[346841817,1735319432710,-500.0,0.00010556,2]
[346841819,1735319432721,-500.0,0.00010556,2]
[346841821,1735319432731,-581.16,0.00010556,2]
[346841823,1735319432742,-500.0,0.00010556,2]
[346841826,1735319432753,-666.07,0.00010556,2]
[346841828,1735319432763,-500.0,0.00010556,2]
[346841830,1735319432774,-500.0,0.00010556,2]
[346841832,1735319432785,-500.0,0.00010556,2]
[346841834,1735319432795,-500.0,0.00010556,2]
[346841836,1735319432805,-500.0,0.00010556,2]
[346841838,1735319432816,-500.0,0.00010556,2]
[346841840,1735319432827,-500.0,0.00010556,2]
[346841843,1735319432838,-500.0,0.00010556,2]
[346841845,1735319432848,-516.02,0.00010556,2]
[346841847,1735319432859,-500.0,0.00010556,2]
[346841849,1735319432870,-711.22,0.00010556,2]
[346841851,1735319432880,-914.09,0.00010556,2]
[346841853,1735319432890,-500.0,0.00010556,2]
[346841855,1735319432901,-500.0,0.00010556,2]
[346841857,1735319432911,-623.88,0.00010556,2]
[346841860,1735319432922,-500.0,0.00010556,2]
[346841862,1735319432932,-856.06,0.00010556,2]
[346841864,1735319432943,-500.0,0.00010556,2]
[346841866,1735319432953,-500.0,0.00010556,2]
[346841868,1735319432964,-500.0,0.00010556,2]
[346841870,1735319432975,-536.78,0.00010556,2]
[346841872,1735319432985,-500.0,0.00010556,2]
[346841875,1735319432996,-500.0,0.00010556,2]
[346841877,1735319433007,-500.0,0.00010556,2]
[346841879,1735319433018,-500.0,0.00010556,2]
[346841881,1735319433029,-617.67,0.00010556,2]
[346841883,1735319433040,-500.0,0.00010556,2]
[346841885,1735319433051,-500.0,0.00010556,2]
[346841887,1735319433062,-500.0,0.00010556,2]
[346841890,1735319433075,-547.72,0.00010556,2]
[346841892,1735319433085,-500.0,0.00010556,2]
[346841894,1735319433097,-500.0,0.00010556,2]
[346841896,1735319433110,-500.0,0.00010556,2]
[346841898,1735319433120,-537.52,0.00010556,2]
[346841900,1735319433131,-500.0,0.00010556,2]
[346841902,1735319433142,-500.0,0.00010556,2]
[346841905,1735319433153,-888.72,0.00010556,2]
[346841907,1735319433164,-500.0,0.00010556,2]
[346841909,1735319433174,-500.0,0.00010556,2]
[346841911,1735319433185,-968.21,0.00010556,2]
[346841913,1735319433196,-500.0,0.00010556,2]
[346841915,1735319433207,-500.0,0.00010556,2]
[346841917,1735319433219,-500.0,0.00010556,2]
[346841919,1735319433230,-500.0,0.00010556,2]
[346841922,1735319433241,-500.0,0.00010556,2]
[346841924,1735319433251,-500.0,0.00010556,2]
[346841926,1735319433262,-500.0,0.00010556,2]
[346841928,1735319433273,-500.0,0.00010556,2]
[346841930,1735319433284,-541.97,0.00010556,2]
[346841932,1735319433294,-500.0,0.00010556,2]
[346841934,1735319433306,-500.0,0.00010556,2]
[346841936,1735319433317,-500.0,0.00010556,2]
[346841939,1735319433328,-576.06,0.00010556,2]
[346841941,1735319433339,-532.31866054,0.00010556,2]
[346841943,1735319433351,-500.0,0.00010556,2]
[346841945,1735319433362,-500.0,0.00010556,2]
[346841947,1735319433372,-500.0,0.00010556,2]
[346841949,1735319433383,-500.0,0.00010556,2]
[346841951,1735319433394,-815.62,0.00010556,2]
[346841953,1735319433407,-500.0,0.00010556,2]
[346841955,1735319433418,-1136.42,0.00010556,2]
[346841957,1735319433429,-500.0,0.00010556,2]
[346841959,1735319433440,-500.0,0.00010556,2]
[346841961,1735319433452,-604.55,0.00010556,2]
[346841964,1735319433462,-500.0,0.00010556,2]
[346841966,1735319433474,-500.0,0.00010556,2]
[346841968,1735319433485,-1449.03,0.00010556,2]
[346841970,1735319433495,-500.0,0.00010556,2]
[346841972,1735319433507,-500.0,0.00010556,2]
[346841974,1735319433518,-1140.34,0.00010556,2]
[346841976,1735319433529,-500.0,0.00010556,2]
[346841978,1735319433542,-500.0,0.00010556,2]
[346841981,1735319433554,-500.0,0.00010556,2]
[346841983,1735319433566,-500.0,0.00010556,2]
[346841985,1735319433577,-500.0,0.00010556,2]
[346841987,1735319433591,-500.0,0.00010556,2]
[346841990,1735319433604,-500.0,0.00010556,2]
[346841992,1735319433615,-907.39,0.00010556,2]
[346841994,1735319433627,-1008.32,0.00010556,2]
[346841996,1735319433639,-711.41,0.00010556,2]
[346841998,1735319433650,-547.8,0.00010556,2]
[346842000,1735319433661,-500.0,0.00010556,2]
[346842002,1735319433673,-832.38,0.00010556,2]
[346842004,1735319433684,-500.0,0.00010556,2]
[346842006,1735319433695,-685.07,0.00010556,2]
[346842009,1735319433705,-500.0,0.00010556,2]
[346842011,1735319433716,-500.0,0.00010556,2]
[346842013,1735319433727,-571.09,0.00010556,2]
[346842015,1735319433738,-500.0,0.00010556,2]
[346842017,1735319433749,-500.0,0.00010556,2]
[346842019,1735319433759,-500.0,0.00010556,2]
[346842021,1735319433770,-1329.03,0.00010556,2]
[346842023,1735319433781,-500.0,0.00010556,2]
[346842026,1735319433791,-500.0,0.00010556,2]
[346842028,1735319433802,-920.93,0.00010556,2]
[346842030,1735319433813,-563.17,0.00010556,2]
[346842069,1735319434284,-500.0,0.00010556,2]
[346842073,1735319434314,-831.55,0.00010556,2]
[346842076,1735319434333,-192.81642252,0.00010556,2]
[346842078,1735319434344,-501.28,0.00010556,2]
[346842080,1735319434355,-546.13,0.00010556,2]
[346842082,1735319434365,-500.0,0.00010556,2]
[346842084,1735319434374,-651.89,0.00010556,2]
[346842086,1735319434383,-500.0,0.00010556,2]
[346842088,1735319434393,-500.0,0.00010556,2]
[346842090,1735319434403,-500.0,0.00010556,2]
[346842092,1735319434412,-928.45,0.00010556,2]
[346842094,1735319434422,-459.30430684,0.00010556,2]
[346842096,1735319434431,-505.22,0.00010556,2]
[346842098,1735319434441,-500.0,0.00010556,2]
[346842100,1735319434450,-660.13,0.00010556,2]
[346842102,1735319434459,-500.0,0.00010556,2]
[346842104,1735319434469,-500.0,0.00010556,2]
[346842106,1735319434478,-604.38,0.00010556,2]
[346842108,1735319434487,-1215.15,0.00010556,2]
[346842110,1735319434497,-1639.75,0.00010556,2]
[346842112,1735319434505,-500.0,0.00010556,2]
[346842114,1735319434515,-500.0,0.00010556,2]
[346842116,1735319434524,-875.45,0.00010556,2]
[346842118,1735319434533,-500.0,0.00010556,2]
[346842120,1735319434546,-500.0,0.00010556,2]
[346842122,1735319434555,-984.53,0.00010556,2]
[346842124,1735319434564,-500.0,0.00010556,2]
[346842125,1735319434573,-500.0,0.00010556,2]
[346842127,1735319434583,-1194.43,0.00010556,2]
[346842129,1735319434592,-500.0,0.00010556,2]
[346842131,1735319434603,-505.66,0.00010556,2]
[346842133,1735319434613,-545.45,0.00010556,2]
[346842135,1735319434622,-2281.71,0.00010556,2]
[346842137,1735319434632,-1008.12,0.00010556,2]
[346842139,1735319434641,-500.0,0.00010556,2]
[346842141,1735319434650,-572.67,0.00010556,2]
[346842143,1735319434660,-500.0,0.00010556,2]
[346842144,1735319434669,-1638.2,0.00010556,2]
[346842146,1735319434678,-990.05,0.00010556,2]
[346842149,1735319434689,-500.0,0.00010556,2]
[346842150,1735319434698,-702.13,0.00010556,2]
[346842152,1735319434708,-651.9,0.00010556,2]
[346842154,1735319434717,-1082.76,0.00010556,2]
[346842156,1735319434726,-500.0,0.00010556,2]
[346842158,1735319434736,-6409.76,0.00010556,2]
[346842160,1735319434745,-600.79,0.00010556,2]
[346842163,1735319434755,-500.0,0.00010556,2]
[346842164,1735319434764,-963.95,0.00010556,2]
[346842167,1735319434777,-4792.58,0.00010556,2]
[346842169,1735319434787,-500.0,0.00010556,2]
[346842171,1735319434797,-500.0,0.00010556,2]
[346842172,1735319434806,-889.94,0.00010556,2]
[346842174,1735319434815,-856.15,0.00010556,2]
[346842176,1735319434824,-3776.09,0.00010556,2]
[346842178,1735319434834,-847.44,0.00010556,2]
[346842180,1735319434843,-500.0,0.00010556,2]
[346842182,1735319434853,-500.0,0.00010556,2]
[346842184,1735319434862,-1257.97,0.00010556,2]
[346842186,1735319434871,-921.94,0.00010556,2]
[346842188,1735319434881,-814.13,0.00010556,2]
[346842189,1735319434890,-504.42,0.00010556,2]
[346842191,1735319434900,-836.5,0.00010556,2]
[346842193,1735319434909,-634.03,0.00010556,2]
[346842195,1735319434919,-1374.39,0.00010556,2]
[346842197,1735319434929,-2490.03,0.00010556,2]
[346842199,1735319434938,-500.0,0.00010556,2]
[346842201,1735319434947,-500.0,0.00010556,2]
[346842203,1735319434957,-1284.28,0.00010556,2]
[346842205,1735319434966,-500.0,0.00010556,2]
[346842207,1735319434975,-500.0,0.00010556,2]
[346842209,1735319434984,-500.0,0.00010556,2]
[346842211,1735319434994,-500.0,0.00010556,2]
[346842213,1735319435003,-570.45,0.00010556,2]
[346842215,1735319435013,-1084.59,0.00010556,2]
[346842217,1735319435023,-500.0,0.00010556,2]
[346842219,1735319435032,-760.04,0.00010556,2]
[346842221,1735319435042,-1041.54,0.00010556,2]
[346842223,1735319435051,-500.0,0.00010556,2]
[346842225,1735319435062,-500.0,0.00010556,2]
[346842227,1735319435071,-500.0,0.00010556,2]
[346842229,1735319435081,-501.05,0.00010556,2]
[346842231,1735319435090,-500.0,0.00010556,2]
[346842233,1735319435099,-946.73,0.00010556,2]
[346842235,1735319435111,-793.42,0.00010556,2]
[346842237,1735319435120,-500.0,0.00010556,2]
[346842239,1735319435130,-500.0,0.00010556,2]
[346842241,1735319435139,-1185.95,0.00010556,2]
[346842243,1735319435151,-761.46,0.00010556,2]
[346842245,1735319435161,-1627.38,0.00010556,2]
[346842247,1735319435170,-772.92,0.00010556,2]
[346842249,1735319435180,-724.97,0.00010556,2]
[346842251,1735319435189,-2195.14,0.00010556,2]
[346842253,1735319435199,-500.0,0.00010556,2]
[346842255,1735319435208,-800.91,0.00010556,2]
[346842257,1735319435217,-500.0,0.00010556,2]
[346842259,1735319435226,-505.22,0.00010556,2]
[346842261,1735319435236,-500.0,0.00010556,2]
[346842263,1735319435245,-500.0,0.00010556,2]
[346842265,1735319435254,-1732.38,0.00010556,2]
[346842267,1735319435263,-500.0,0.00010556,2]
[346842269,1735319435272,-519.63,0.00010556,2]
[346842271,1735319435282,-729.81,0.00010556,2]
[346842273,1735319435292,-1337.8,0.00010599,2]
[346842275,1735319435301,-1089.09,0.00010599,2]
[346842277,1735319435310,-937.73,0.00010599,2]
[346842279,1735319435320,-1592.82,0.00010599,2]
[346842281,1735319435330,-3061.16,0.00010599,2]
[346842283,1735319435338,-1500.54,0.00010599,2]
[346842285,1735319435348,-1659.79,0.00010599,2]
[346842287,1735319435358,-2762.73,0.00010599,2]
[346842289,1735319435369,-2060.37,0.00010599,2]
[346842291,1735319435379,-1328.83,0.00010599,2]
[346842293,1735319435388,-1301.311781,0.00010599,2]
[346842295,1735319435397,-152.363359,0.00010599,2]
[346842297,1735319435407,-1059.096932,0.00010599,2]
[346842299,1735319435416,-9759.68,0.00010599,2]
[346842301,1735319435425,-1436.47,0.00010599,2]
[346842303,1735319435435,-1594.89,0.00010599,2]
[346842305,1735319435445,-539.40079861,0.00010599,2]
[346842307,1735319435454,-500.0,0.00010599,2]
[346842309,1735319435464,-9836.0,0.00010599,2]
[346842311,1735319435473,-1813.17,0.00010599,2]
[346842313,1735319435483,-1824.99,0.00010599,2]
[346842315,1735319435492,-1033.76,0.00010599,2]
[346842317,1735319435501,-2030.44,0.00010599,2]
[346842319,1735319435511,-1800.0,0.000106,3]
[346842321,1735319435520,-1032.3382,0.0001063,2]
[346842323,1735319435530,-1715.05,0.00010653,2]
[346842325,1735319435541,-1954.75,0.00010653,2]
[346842327,1735319435551,-2396.97,0.00010653,2]
[346842328,1735319435561,-251.44,0.00010654,2]
[346842330,1735319435570,-79895.0,0.00010654,2]
[346842332,1735319435580,-585.85,0.00010654,2]
[346842334,1735319435591,-1199.28,0.00010654,2]
[346842336,1735319435600,-538.78,0.00010654,2]
[346842338,1735319435611,-691.71,0.00010654,2]
[346842340,1735319435623,-815.96,0.00010654,2]
[346842342,1735319435634,-1323.53,0.00010654,2]
[346842344,1735319435644,-926.79,0.00010654,2]
[346842346,1735319435654,-654.1,0.00010654,2]
[346842348,1735319435663,-652.14,0.00010654,2]
[346842350,1735319435672,-1107.22,0.00010654,2]
[346842352,1735319435682,-645.06,0.00010654,2]
[346842354,1735319435691,-500.0,0.00010654,2]
[346842356,1735319435701,-838.83,0.00010654,2]
[346842358,1735319435711,-549.01,0.00010654,2]
[346842360,1735319435721,-597.76,0.00010654,2]
[346842362,1735319435730,-887.48,0.00010654,2]
[346842365,1735319435740,-1915.74,0.00010654,2]
[346842367,1735319435749,-766.16,0.00010654,2]
[346842369,1735319435759,-191.04640626,0.00010654,2]
[346842371,1735319435769,-500.0,0.00010654,2]
[346842372,1735319435778,-500.0,0.00010654,2]
[346842374,1735319435787,-1113.06,0.00010654,2]
[346842376,1735319435796,-1692.14,0.00010654,2]
[346842378,1735319435806,-785.45,0.00010654,2]
[346842380,1735319435816,-500.0,0.00010654,2]
[346842382,1735319435825,-977.59,0.00010654,2]
[346842385,1735319435835,-679.16,0.00010654,2]
[346842387,1735319435844,-865.28,0.00010654,2]
[346842389,1735319435855,-650.78,0.00010654,2]
[346842390,1735319435864,-1059.88,0.00010654,2]
[346842392,1735319435873,-758.92,0.00010654,2]
[346842395,1735319435883,-500.0,0.00010654,2]
[346842396,1735319435893,-1081.46,0.00010654,2]
[346842399,1735319435903,-1459.67,0.00010654,2]
[346842401,1735319435912,-1258.69,0.00010654,2]
[346842403,1735319435922,-798.38,0.00010654,2]
[346842404,1735319435932,-500.0,0.00010654,2]
[346842406,1735319435942,-713.78,0.00010654,2]
[346842408,1735319435952,-706.8,0.00010654,2]
[346842410,1735319435961,-1637.67,0.00010654,2]
[346842413,1735319435971,-752.35,0.00010654,2]
[346842415,1735319435981,-1030.79,0.00010654,2]
[346842417,1735319435991,-806.67,0.00010654,2]
[346842418,1735319436000,-627.36,0.00010654,2]
[346842421,1735319436011,-760.52,0.00010654,2]
[346842423,1735319436020,-1132.86,0.00010654,2]
[346842425,1735319436030,-1834.71,0.00010654,2]
[346842426,1735319436039,-1760.78,0.00010654,2]
[346842428,1735319436049,-1586.4,0.00010654,2]
[346842430,1735319436059,-1839.92,0.00010654,2]
[346842432,1735319436068,-601.83,0.00010654,2]
[346842434,1735319436078,-500.0,0.00010654,2]
[346842437,1735319436087,-500.0,0.00010654,2]
[346842439,1735319436097,-774.64,0.00010654,2]
[346842441,1735319436106,-678.34,0.00010654,2]
[346842443,1735319436116,-500.0,0.00010654,2]
[346842445,1735319436125,-946.92,0.00010654,2]
[346842447,1735319436135,-900.31,0.00010654,2]
[346842448,1735319436144,-1607.36,0.00010654,2]
[346842450,1735319436153,-1408.21,0.00010654,2]
[346842452,1735319436163,-1843.61,0.00010654,2]
[346842454,1735319436172,-1702.62,0.00010654,2]
[346842457,1735319436182,-500.0,0.00010654,2]
[346842458,1735319436191,-500.0,0.00010654,2]
[346842461,1735319436201,-1449.15,0.00010654,2]
[346842463,1735319436211,-500.0,0.00010654,2]
[346842465,1735319436220,-754.72,0.00010654,2]
[346842467,1735319436229,-785.15,0.00010654,2]
[346842469,1735319436238,-1280.57,0.00010654,2]
[346842471,1735319436248,-688.29,0.00010654,2]
[346842473,1735319436257,-752.47,0.00010654,2]
[346842475,1735319436267,-500.0,0.00010654,2]
[346842477,1735319436276,-500.0,0.00010655,2]
[346842479,1735319436286,-998.55,0.00010655,2]
[346842481,1735319436297,-662.09,0.00010655,2]
[346842483,1735319436307,-500.0,0.00010655,2]
[346842485,1735319436316,-500.0,0.00010655,2]
[346842487,1735319436326,-592.65,0.00010655,2]
[346842489,1735319436335,-500.0,0.00010655,2]
[346842491,1735319436345,-513.59,0.00010655,2]
[346842493,1735319436356,-757.48,0.00010655,2]
[346842495,1735319436366,-500.0,0.00010655,2]
[346842497,1735319436375,-500.0,0.00010655,2]
[346842499,1735319436385,-500.0,0.00010655,2]
[346842501,1735319436394,-500.0,0.00010655,2]
[346842503,1735319436404,-500.0,0.00010655,2]
[346842505,1735319436413,-585.23,0.00010655,2]
[346842507,1735319436423,-500.0,0.00010655,2]
[346842509,1735319436433,-500.0,0.00010655,2]
[346842511,1735319436444,-630.79,0.00010655,2]
[346842513,1735319436454,-500.0,0.00010655,2]
[346842515,1735319436463,-500.0,0.00010655,2]
[346842517,1735319436474,-565.41315376,0.00010655,2]
[346842519,1735319436484,-500.0,0.00010655,2]
[346842521,1735319436493,-500.0,0.00010655,2]
[346842523,1735319436502,-500.0,0.00010655,2]
[346842525,1735319436511,-500.0,0.00010655,2]
[346842527,1735319436520,-500.0,0.00010655,2]
[346842529,1735319436530,-500.0,0.00010655,2]
[346842531,1735319436542,-846.21,0.00010655,2]
[346842533,1735319436552,-454.27707429,0.00010655,2]
[346842535,1735319436561,-500.0,0.00010655,2]
[346842537,1735319436570,-605.79,0.00010655,2]
[346842539,1735319436579,-520.05,0.00010655,2]
[346842541,1735319436591,-500.0,0.00010655,2]